{"text_format":"3","workbook":"xlsx","n_sheets":8,"sheets":["Chỉ đường","Khách hàng quen","Khách hàng không thường xuyên","Khách hàng tiềm năng","Kế hoạch Kết nối Q1","Kế hoạch Kết nối Q2","Kế hoạch Kết nối Q3","Kế hoạch Kết nối Q4"],"not_rendered":{"defined_names":7},"read":"whole","date_system":"1900"}

{"sheet":"Chỉ đường","index":0,"n_rows":17,"n_cols":5,"rows_kept":17,"merged":[[0,0,0,2],[1,1,1,6],[2,1,2,6],[3,1,3,6],[4,1,4,6],[5,1,5,6],[6,1,6,6],[7,1,7,6],[8,1,8,6],[9,1,9,6],[10,1,10,6],[11,1,11,6]]}
["Bộ theo dõi Cơ sở Cảm ứng",null,null,"Hướng dẫn"]
[null,"1. Quyết định xem liên hệ của bạn rơi vào danh mục nào:"]
[null,"• Định kỳ Thường xuyên - những người mà bạn muốn giữ liên lạc một cách rất thường xuyên"]
[null,"• Người quen Thỉnh thoảng - những người bạn muốn kiểm tra một vài lần trong một năm"]
[null,"• Triển vọng tiềm năng - những người/công ty mà bạn muốn giữ trong hồ sơ để liên hệ khi thời gian tự chỉ định"]
[null,"2. Mở tab trang tính tương ứng."]
[null,"3. Nhập thông tin của họ (để tạo dòng mới trong ô, nhấn Alt+Enter trong Windows hoặc Option+Return trên máy Mac)."]
[null,"Kiểm tra tại đây để biết hướng dẫn dòng mới cho các ứng dụng Excel dành cho thiết bị di động."]
[null,"4. Trong cột Ngày Theo dõi, xóa ngày/công thức mẫu, nhập khi bạn muốn liên hệ với họ, \nvà sau đó nhấn Enter."]
[null,"5. Cột Ngày Theo dõi sẽ hiển thị màu đỏ khi ngày ở rất gần, màu vàng khi ngày đến gần và \nmàu xanh lá cây khi bạn có nhiều thời gian."]
[null,"6. Khi ngày theo dõi đến gần hơn, màu sắc sẽ thay đổi tương ứng."]
[null,"7. Sau khi bạn đã liên hệ với liên hệ của mình, hãy nhập YES trong cột Đã xong?. Ngày tháng sẽ chuyển sang màu xám. "]
[null,"8. Nếu bạn muốn liên hệ lại với họ, hãy thay thế YES bằng NO, rồi nhập Ngày theo dõi mới."]
[null,null,"Đỏ","Vàng","Xanh lục"]
[null,"Chính quy Định kỳ","1-3 ngày nữa","4-7 ngày nữa","8-14+ ngày nữa"]
[null,"Người quen Thỉnh thoảng","1-7 ngày nữa","8-45 ngày nữa","46-90+ ngày nữa"]
[null,"Triển vọng tiềm năng","1-14 ngày nữa","15-60 ngày nữa","60-120+ ngày nữa"]

{"sheet":"Khách hàng quen","index":1,"n_rows":7,"n_cols":8,"rows_kept":7,"merged":[[0,0,0,2]]}
["Bộ theo dõi Cơ sở Cảm ứng",null,null,"Chính quy Định kỳ"]
[]
["Tên","Công ty","Thông tin liên hệ","Nơi Chúng Tôi Đã Gặp","Ghi chú","Ngày Theo dõi","Hoàn tất","Ghi chú Từ Cuộc trò chuyện"]
["Garth Fort","Adventure Works","Quản lý Dự án\ngarth@adventure-works.com\n(234) 555-0134\nadventure-works.com\nlinkedin.com/in/garth-fort","Triển lãm thương mại 2010","Hãy hỏi về cô con gái Sandy và việc tu sửa diễn ra như thế nào. Không ngon miệng đối với các nhóm lớn và thức ăn cay.",{"$f":"TODAY()+8","v":"2021-07-24"},"KHÔNG"]
["Tên","Tên Công ty","Chức danh công việc\nĐịa chỉ email\nSố điện thoại\nTrang web\nLiên kết hồ sơ mạng xã hội\n","Địa điểm","Đưa vào ghi chú bất kỳ mà bạn muốn nhớ về người này; nơi bạn đã gặp, những gì bạn đã nói về, những gì bạn muốn trình bày trong lần tiếp theo bạn nói, v.v.",{"$f":"TODAY()-3","v":"2021-07-13"},"CÓ"]
["Tên","Tên công ty","Chức danh công việc\nĐịa chỉ email\nSố điện thoại\nTrang web\nLiên kết hồ sơ mạng xã hội\n","Địa điểm","Đưa vào ghi chú bất kỳ mà bạn muốn nhớ về người này; nơi bạn đã gặp, những gì bạn đã nói về, những gì bạn muốn trình bày trong lần tiếp theo bạn nói, v.v.",{"$f":"TODAY()+-3","v":"2021-07-13"},"KHÔNG"]
["Tên","Tên Công ty","Chức danh công việc\nĐịa chỉ email\nSố điện thoại\nTrang web\nLiên kết hồ sơ mạng xã hội\n","Địa điểm","Đưa vào ghi chú bất kỳ mà bạn muốn nhớ về người này; nơi bạn đã gặp, những gì bạn đã nói về, những gì bạn muốn trình bày trong lần tiếp theo bạn nói, v.v.",{"$f":"TODAY()+6","v":"2021-07-22"},"KHÔNG"]

{"sheet":"Khách hàng không thường xuyên","index":2,"n_rows":7,"n_cols":8,"rows_kept":7,"merged":[[0,0,0,2]]}
["Bộ theo dõi Cơ sở Cảm ứng",null,null,"Người quen Thỉnh thoảng"]
[]
["Tên","Công ty","Thông tin liên hệ","Nơi Chúng Tôi Đã Gặp","Ghi chú","Ngày Theo dõi","Hoàn tất","Ghi chú Từ Cuộc trò chuyện"]
["Garth Fort","Adventure Works","Quản lý Nguồn cung ứng\ngarth@adventure-works.com\n(434) 555-0123\nwww.adventure-works.com\nlinkedin.com/in/garth-fort","Kỳ nghỉ ở Vermont 2016","Tiện dụng cho cả các liên hệ tuyển dụng cũng như các câu hỏi tiếp thị",{"$f":"TODAY()+90","v":"2021-10-14"},"KHÔNG"]
["Tên","Tên Công ty","Chức danh công việc\nĐịa chỉ email\nSố điện thoại\nTrang web\nLiên kết hồ sơ mạng xã hội\n","Địa điểm","Đưa vào ghi chú bất kỳ mà bạn muốn nhớ về người này; nơi bạn đã gặp, những gì bạn đã nói về, những gì bạn muốn trình bày trong lần tiếp theo bạn nói, v.v.",{"$f":"TODAY()-3","v":"2021-07-13"},"CÓ"]
["Tên","Tên công ty","Chức danh công việc\nĐịa chỉ email\nSố điện thoại\nTrang web\nLiên kết hồ sơ mạng xã hội\n","Địa điểm","Đưa vào ghi chú bất kỳ mà bạn muốn nhớ về người này; nơi bạn đã gặp, những gì bạn đã nói về, những gì bạn muốn trình bày trong lần tiếp theo bạn nói, v.v.",{"$f":"TODAY()+-3","v":"2021-07-13"},"KHÔNG"]
["Tên","Tên Công ty","Chức danh công việc\nĐịa chỉ email\nSố điện thoại\nTrang web\nLiên kết hồ sơ mạng xã hội\n","Địa điểm","Đưa vào ghi chú bất kỳ mà bạn muốn nhớ về người này; nơi bạn đã gặp, những gì bạn đã nói về, những gì bạn muốn trình bày trong lần tiếp theo bạn nói, v.v.",{"$f":"TODAY()+40","v":"2021-08-25"},"KHÔNG"]

{"sheet":"Khách hàng tiềm năng","index":3,"n_rows":7,"n_cols":8,"rows_kept":7,"merged":[[0,0,0,2]]}
["Bộ theo dõi Cơ sở Cảm ứng",null,null,"Triển vọng tiềm năng"]
[]
["Tên","Công ty","Thông tin liên hệ","Nơi Chúng Tôi Đã Gặp","Ghi chú","Ngày Theo dõi","Hoàn tất","Ghi chú Từ Cuộc trò chuyện"]
["Garth Fort","Người làm nghề tự do","Trình thiết kế\nsomeone@example.com\n425-555-0123\nexample.com\nlinkedin.com/in/garth-fort","Lễ tốt nghiệp của Con trai năm 2016","Tốt nghiệp gần đây - rất có tay nghề. Có thể hữu ích cho các máy khách tương lai.",{"$f":"TODAY()+89","v":"2021-10-13"},"KHÔNG"]
["Tên","Tên Công ty","Chức danh công việc\nĐịa chỉ email\nSố điện thoại\nTrang web\nLiên kết hồ sơ mạng xã hội\n","Địa điểm","Đưa vào ghi chú bất kỳ mà bạn muốn nhớ về người này; nơi bạn đã gặp, những gì bạn đã nói về, những gì bạn muốn trình bày trong lần tiếp theo bạn nói, v.v.",{"$f":"TODAY()-3","v":"2021-07-13"},"CÓ"]
["Tên","Tên công ty","Chức danh công việc\nĐịa chỉ email\nSố điện thoại\nTrang web\nLiên kết hồ sơ mạng xã hội\n","Địa điểm","Đưa vào ghi chú bất kỳ mà bạn muốn nhớ về người này; nơi bạn đã gặp, những gì bạn đã nói về, những gì bạn muốn trình bày trong lần tiếp theo bạn nói, v.v.",{"$f":"TODAY()+-3","v":"2021-07-13"},"KHÔNG"]
["Tên","Tên Công ty","Chức danh công việc\nĐịa chỉ email\nSố điện thoại\nTrang web\nLiên kết hồ sơ mạng xã hội\n","Địa điểm","Đưa vào ghi chú bất kỳ mà bạn muốn nhớ về người này; nơi bạn đã gặp, những gì bạn đã nói về, những gì bạn muốn trình bày trong lần tiếp theo bạn nói, v.v.",{"$f":"TODAY()+30","v":"2021-08-15"},"KHÔNG"]

{"sheet":"Kế hoạch Kết nối Q1","index":4,"n_rows":20,"n_cols":6,"rows_kept":20,"merged":[[0,0,0,3],[2,0,2,3],[4,0,4,3],[14,5,17,5],[18,0,18,3]]}
["Kế hoạch Mở rộng Mạng"]
["Hướng dẫn"]
["Viết ra cách bạn dự định mở rộng mạng lưới trong quý này (ví dụ: thực hiện nhiều cuộc gọi điện thoại hơn, di chuyển nhiều hơn, v.v.). Sau đó, mỗi khi bạn nhận được một liên hệ mới, hãy thay đổi số Liên hệ Thực tế được Tạo để theo dõi và xem bạn đang tiến gần đến mục tiêu của mình như thế nào."]
[]
["Cách tôi dự định mở rộng mạng lưới của mình trong quý này"]
["1. Thực hiện gọi điện thoại nhiều hơn"]
["2. Di chuyển thêm"]
[]
[]
[]
[]
[]
[]
["Mục tiêu Liên hệ Hàng quý","Hạn chót","Thực tế Liên hệ Hàng quý được Thực hiện","Kết quả"]
[20,{"$f":"TODAY()","v":"2021-07-16"},12,{"$f":"IF(tblGoals[[#This Row],[Mục tiêu Liên hệ Hàng quý]]>0,tblGoals[[#This Row],[Thực tế Liên hệ Hàng quý được Thực hiện]]/tblGoals[[#This Row],[Mục tiêu Liên hệ Hàng quý]],\"\")","v":{"v":0.6,"d":"60%"}},null,"0% - 25%\n26% - 50%\n51% - 75%\n76% - 100%\n\nMàu sắc thay đổi dựa trên phần trăm đạt được"]
[{"$nulls":3},{"$f":"IF(tblGoals[[#This Row],[Mục tiêu Liên hệ Hàng quý]]>0,tblGoals[[#This Row],[Thực tế Liên hệ Hàng quý được Thực hiện]]/tblGoals[[#This Row],[Mục tiêu Liên hệ Hàng quý]],\"\")","v":""}]
[{"$nulls":3},{"$f":"IF(tblGoals[[#This Row],[Mục tiêu Liên hệ Hàng quý]]>0,tblGoals[[#This Row],[Thực tế Liên hệ Hàng quý được Thực hiện]]/tblGoals[[#This Row],[Mục tiêu Liên hệ Hàng quý]],\"\")","v":""}]
[]
["Phản ánh kết quả / Ghi chú để cải thiện"]
["Đến gần. Thay vào đó, hãy thử gọi điện vào khoảng giờ ăn trưa."]

{"sheet":"Kế hoạch Kết nối Q2","index":5,"n_rows":20,"n_cols":6,"rows_kept":20,"merged":[[0,0,0,3],[2,0,2,3],[4,0,4,3],[14,5,17,5],[18,0,18,3]]}
["Kế hoạch Mở rộng Mạng"]
["Hướng dẫn"]
["Viết ra cách bạn dự định mở rộng mạng lưới trong quý này (ví dụ: thực hiện nhiều cuộc gọi điện thoại hơn, di chuyển nhiều hơn, v.v.). Sau đó, mỗi khi bạn nhận được một liên hệ mới, hãy thay đổi số Liên hệ Thực tế được Tạo để theo dõi và xem bạn đang tiến gần đến mục tiêu của mình như thế nào."]
[]
["Cách tôi dự định mở rộng mạng lưới của mình trong quý này"]
["1. Thực hiện gọi điện thoại nhiều hơn"]
["2. Di chuyển thêm"]
[]
[]
[]
[]
[]
[]
["Mục tiêu Liên hệ Hàng quý","Hạn chót","Thực tế Liên hệ Hàng quý được Thực hiện","Kết quả"]
[20,{"$f":"TODAY()","v":"2021-07-16"},12,{"$f":"IF(tblGoals3[[#This Row],[Mục tiêu Liên hệ Hàng quý]]>0,tblGoals3[[#This Row],[Thực tế Liên hệ Hàng quý được Thực hiện]]/tblGoals3[[#This Row],[Mục tiêu Liên hệ Hàng quý]],\"\")","v":{"v":0.6,"d":"60%"}},null,"0% - 25%\n26% - 50%\n51% - 75%\n76% - 100%\n\nMàu sắc thay đổi dựa trên phần trăm đạt được"]
[{"$nulls":3},{"$f":"IF(tblGoals3[[#This Row],[Mục tiêu Liên hệ Hàng quý]]>0,tblGoals3[[#This Row],[Thực tế Liên hệ Hàng quý được Thực hiện]]/tblGoals3[[#This Row],[Mục tiêu Liên hệ Hàng quý]],\"\")","v":""}]
[{"$nulls":3},{"$f":"IF(tblGoals3[[#This Row],[Mục tiêu Liên hệ Hàng quý]]>0,tblGoals3[[#This Row],[Thực tế Liên hệ Hàng quý được Thực hiện]]/tblGoals3[[#This Row],[Mục tiêu Liên hệ Hàng quý]],\"\")","v":""}]
[]
["Phản ánh kết quả / Ghi chú để cải thiện"]
["Đến gần. Thay vào đó, hãy thử gọi điện vào khoảng giờ ăn trưa."]

{"sheet":"Kế hoạch Kết nối Q3","index":6,"n_rows":20,"n_cols":6,"rows_kept":20,"merged":[[0,0,0,3],[2,0,2,3],[4,0,4,3],[14,5,17,5],[18,0,18,3]]}
["Kế hoạch Mở rộng Mạng"]
["Hướng dẫn"]
["Viết ra cách bạn dự định mở rộng mạng lưới trong quý này (ví dụ: thực hiện nhiều cuộc gọi điện thoại hơn, di chuyển nhiều hơn, v.v.). Sau đó, mỗi khi bạn nhận được một liên hệ mới, hãy thay đổi số Liên hệ Thực tế được Tạo để theo dõi và xem bạn đang tiến gần đến mục tiêu của mình như thế nào."]
[]
["Cách tôi dự định mở rộng mạng lưới của mình trong quý này"]
["1. Thực hiện gọi điện thoại nhiều hơn"]
["2. Di chuyển thêm"]
[]
[]
[]
[]
[]
[]
["Mục tiêu Liên hệ Hàng quý","Hạn chót","Thực tế Liên hệ Hàng quý được Thực hiện","Kết quả"]
[20,{"$f":"TODAY()","v":"2021-07-16"},12,{"$f":"IF(tblGoals34[[#This Row],[Mục tiêu Liên hệ Hàng quý]]>0,tblGoals34[[#This Row],[Thực tế Liên hệ Hàng quý được Thực hiện]]/tblGoals34[[#This Row],[Mục tiêu Liên hệ Hàng quý]],\"\")","v":{"v":0.6,"d":"60%"}},null,"0% - 25%\n26% - 50%\n51% - 75%\n76% - 100%\n\nMàu sắc thay đổi dựa trên phần trăm đạt được"]
[{"$nulls":3},{"$f":"IF(tblGoals34[[#This Row],[Mục tiêu Liên hệ Hàng quý]]>0,tblGoals34[[#This Row],[Thực tế Liên hệ Hàng quý được Thực hiện]]/tblGoals34[[#This Row],[Mục tiêu Liên hệ Hàng quý]],\"\")","v":""}]
[{"$nulls":3},{"$f":"IF(tblGoals34[[#This Row],[Mục tiêu Liên hệ Hàng quý]]>0,tblGoals34[[#This Row],[Thực tế Liên hệ Hàng quý được Thực hiện]]/tblGoals34[[#This Row],[Mục tiêu Liên hệ Hàng quý]],\"\")","v":""}]
[]
["Phản ánh kết quả / Ghi chú để cải thiện"]
["Đến gần. Thay vào đó, hãy thử gọi điện vào khoảng giờ ăn trưa."]

{"sheet":"Kế hoạch Kết nối Q4","index":7,"n_rows":20,"n_cols":6,"rows_kept":20,"merged":[[0,0,0,3],[2,0,2,3],[4,0,4,3],[14,5,17,5],[18,0,18,3]]}
["Kế hoạch Mở rộng Mạng"]
["Hướng dẫn"]
["Viết ra cách bạn dự định mở rộng mạng lưới trong quý này (ví dụ: thực hiện nhiều cuộc gọi điện thoại hơn, di chuyển nhiều hơn, v.v.). Sau đó, mỗi khi bạn nhận được một liên hệ mới, hãy thay đổi số Liên hệ Thực tế được Tạo để theo dõi và xem bạn đang tiến gần đến mục tiêu của mình như thế nào."]
[]
["Cách tôi dự định mở rộng mạng lưới của mình trong quý này"]
["1. Thực hiện gọi điện thoại nhiều hơn"]
["2. Di chuyển thêm"]
[]
[]
[]
[]
[]
[]
["Mục tiêu Liên hệ Hàng quý","Hạn chót","Thực tế Liên hệ Hàng quý được Thực hiện","Kết quả"]
[20,{"$f":"TODAY()","v":"2021-07-16"},12,{"$f":"IF(tblGoals348[[#This Row],[Mục tiêu Liên hệ Hàng quý]]>0,tblGoals348[[#This Row],[Thực tế Liên hệ Hàng quý được Thực hiện]]/tblGoals348[[#This Row],[Mục tiêu Liên hệ Hàng quý]],\"\")","v":{"v":0.6,"d":"60%"}},null,"0% - 25%\n26% - 50%\n51% - 75%\n76% - 100%\n\nMàu sắc thay đổi dựa trên phần trăm đạt được"]
[{"$nulls":3},{"$f":"IF(tblGoals348[[#This Row],[Mục tiêu Liên hệ Hàng quý]]>0,tblGoals348[[#This Row],[Thực tế Liên hệ Hàng quý được Thực hiện]]/tblGoals348[[#This Row],[Mục tiêu Liên hệ Hàng quý]],\"\")","v":""}]
[{"$nulls":3},{"$f":"IF(tblGoals348[[#This Row],[Mục tiêu Liên hệ Hàng quý]]>0,tblGoals348[[#This Row],[Thực tế Liên hệ Hàng quý được Thực hiện]]/tblGoals348[[#This Row],[Mục tiêu Liên hệ Hàng quý]],\"\")","v":""}]
[]
["Phản ánh kết quả / Ghi chú để cải thiện"]
["Đến gần. Thay vào đó, hãy thử gọi điện vào khoảng giờ ăn trưa."]